fUSD/lending_fUSD_20250116
["ID","MTS","AMOUNT","RATE_DAILY","PERIOD"]
[349187728,1737022246435,-812.85,0.00041675,25]
[349187730,1737022246443,-500.0,0.00041675,25]
[349187732,1737022246453,-500.0,0.00041675,25]
[349187734,1737022246463,-933.54,0.00041675,25]
[349187736,1737022246472,-1878.59,0.00041675,25]
[349187738,1737022246482,-1287.67,0.00041675,25]
[349187740,1737022246492,-500.0,0.00041675,25]
[349187742,1737022246500,-500.0,0.00041675,25]
[349187744,1737022246510,-1882.81,0.00041675,25]
[349187746,1737022246519,-1075.23,0.00041675,25]
[349187748,1737022246528,-500.0,0.00041675,25]
[349187750,1737022246537,-500.0,0.00041675,25]
[349187752,1737022246548,-2656.42,0.00041675,25]
[349187754,1737022246558,-662.09,0.00041675,25]
[349187756,1737022246568,-500.0,0.00041675,25]
[349187758,1737022246577,-500.0,0.00041675,25]
[349187760,1737022246587,-699.16,0.00041675,25]
[349187762,1737022246597,-1606.24,0.00041675,25]
[349187764,1737022246609,-497.22840674,0.00041675,25]
[349187766,1737022246618,-823.54,0.00041675,25]
[349187768,1737022246627,-500.0,0.00041675,25]
[349187770,1737022246636,-500.0,0.00041675,25]
[349187771,1737022246646,-1394.69,0.00041675,25]
[349187774,1737022246656,-841.54,0.00041675,25]
[349187775,1737022246665,-744.62,0.00041675,25]
[349187778,1737022246678,-1192.68,0.00041675,25]
[349187779,1737022246688,-500.0,0.00041675,25]
[349187782,1737022246698,-1462.11,0.00041675,25]
[349187783,1737022246707,-500.0,0.00041675,25]
[349187786,1737022246717,-640.75,0.00041675,25]
[349187787,1737022246727,-706.94,0.00041675,25]
[349187788,1737022246735,-151.0,0.00041676,14]
[349187789,1737022246744,-500.0,0.00041676,25]
[349187790,1737022246753,-500.0,0.00041676,25]
[349187791,1737022246763,-500.0,0.00041676,25]
[349187792,1737022246772,-500.0,0.00041676,25]
[349187793,1737022246781,-500.0,0.00041676,25]
[349187794,1737022246789,-500.0,0.00041676,25]
[349187795,1737022246798,-500.0,0.00041676,25]
[349187796,1737022246807,-500.0,0.00041676,25]
[349187797,1737022246816,-500.0,0.00041676,25]
[349187798,1737022246825,-500.0,0.00041676,25]
[349187799,1737022246835,-151.0,0.00041676,14]
[349187801,1737022246844,-151.0,0.00041676,14]
[349187803,1737022246853,-151.0,0.00041676,14]
[349187805,1737022246863,-151.0,0.00041676,14]
[349187807,1737022246872,-151.0,0.00041676,14]
[349187809,1737022246882,-320.70852,0.00041676,10]
[349187811,1737022246891,-151.0,0.00041676,14]
[349187813,1737022246900,-158.927964,0.00041676,14]
[349187815,1737022246909,-158.927964,0.00041676,14]
[349187817,1737022246918,-500.0,0.00041676,25]
[349187819,1737022246927,-500.0,0.00041676,25]
[349187821,1737022246935,-151.0,0.00041676,14]
[349187823,1737022246945,-500.0,0.00041676,25]
[349187825,1737022246954,-567.0,0.00041676,25]
[349187827,1737022246963,-151.0,0.00041676,14]
[349187829,1737022246973,-151.0,0.00041676,14]
[349187831,1737022246981,-500.0,0.00041676,25]
[349187833,1737022246991,-500.0,0.00041676,25]
[349187835,1737022247000,-520.48,0.00041676,25]
[349187837,1737022247009,-2053.13,0.00041676,25]
[349187839,1737022247019,-922.52,0.00041676,25]
[349187841,1737022247028,-345.996772,0.00041676,14]
[349187843,1737022247038,-345.996772,0.00041676,14]
[349187845,1737022247048,-500.0,0.00041676,25]
[349187847,1737022247057,-1403.74,0.00041676,25]
[349187849,1737022247067,-151.0,0.00041676,14]
[349187851,1737022247077,-500.0,0.00041676,25]
[349187853,1737022247087,-500.0,0.00041676,25]
[349187855,1737022247096,-1379.66,0.00041676,25]
[349187857,1737022247105,-1148.1,0.00041676,25]
[349187859,1737022247115,-115646.72429728,0.00041677,45]
[349187861,1737022247124,-151.0,0.00041677,14]
[349187863,1737022247133,-151.0,0.00041677,14]
[349187865,1737022247143,-2399.3982489,0.00041688,2]
[349187867,1737022247152,-3952.4331781,0.00041717,2]
[349187869,1737022247162,-174.76,0.00041747,2]
[349187871,1737022247171,-209.05181945,0.00041823,9]
[349187873,1737022247181,-3133.87135329,0.00041849,120]
[349187875,1737022247190,-400.0,0.000419,15]
[349187877,1737022247200,-959.0,0.00041916,7]
[349187879,1737022247210,-4946.69469594,0.00041971,30]
[349187881,1737022247220,-209.05181945,0.00041977,9]
[349187883,1737022247229,-900.0,0.00042,15]
[349187885,1737022247239,-5000.0,0.00042,120]
[349187887,1737022247249,-5000.0,0.00042,120]
[349187889,1737022247258,-1564.0,0.00042,7]
[349187891,1737022247267,-196.0435307,0.00042,120]
[349187893,1737022247276,-1400.0,0.000421,15]
[349187895,1737022247285,-209.05181945,0.00042131,9]
[349187897,1737022247295,-150.0,0.00042151,30]
[349187899,1737022247305,-1900.0,0.000422,15]
[349187901,1737022247315,-209.05181945,0.00042285,9]
[349187903,1737022247324,-2400.0,0.000423,15]
[349187905,1737022247333,-365.0,0.000423,30]
[349187907,1737022247343,-931.0,0.000423,30]
[349187909,1737022247352,-980.56,0.000423,30]
[349187911,1737022247362,-980.56,0.000423,30]
[349187913,1737022247372,-980.56,0.000423,30]
[349187915,1737022247381,-1960.87,0.000423,30]
[349187917,1737022247391,-980.56,0.000423,30]
[349187919,1737022247401,-980.56,0.000423,30]
[349187921,1737022247410,-979.56,0.000423,30]
[349187923,1737022247420,-980.56,0.000423,30]
[349187925,1737022247429,-980.56,0.000423,30]
[349187927,1737022247438,-637.0,0.000423,30]
[349187929,1737022247447,-836.88,0.000423,30]
[349187931,1737022247457,-1959.04,0.000423,30]
[349187933,1737022247466,-1960.0,0.000423,30]
[349187935,1737022247476,-980.56,0.000423,30]
[349187937,1737022247485,-980.56,0.000423,30]
[349187939,1737022247494,-980.56,0.000423,30]
[349187941,1737022247503,-928.23,0.00042301,2]
[349187943,1737022247513,-161.085,0.00042397,2]
[349187945,1737022247523,-3898.0,0.00042397,2]
[349187947,1737022247532,-1174.0,0.00042397,2]
[349187949,1737022247542,-1104.0,0.00042397,2]
[349187952,1737022247553,-152.0,0.000424,3]
[349187954,1737022247563,-400.0,0.000424,15]
[349187956,1737022247572,-209.05181945,0.00042438,9]
[349187958,1737022247581,-400.0,0.000425,15]
[349187960,1737022247591,-209.05181945,0.00042592,9]
[349187962,1737022247604,-500.0,0.00042598,25]
[349187964,1737022247614,-659.57,0.00042598,25]
[349187966,1737022247623,-163.442924,0.00042598,25]
[349187968,1737022247633,-1053.71,0.00042598,25]
[349187970,1737022247644,-500.0,0.00042598,25]
[349187972,1737022247653,-568.15,0.00042598,25]
[349187974,1737022247663,-1691.25,0.00042598,25]
[349187976,1737022247673,-568.99,0.00042598,25]
[349187978,1737022247683,-761.84,0.00042598,25]
[349187980,1737022247693,-500.0,0.00042598,25]
[349187982,1737022247703,-500.0,0.00042598,25]
[349187984,1737022247712,-1255.38,0.00042598,25]
[349187986,1737022247722,-500.0,0.00042598,25]
[349187988,1737022247731,-1414.85,0.00042598,25]
[349187990,1737022247741,-973.35,0.00042598,25]
[349187992,1737022247750,-812.85,0.00042598,25]
[349187994,1737022247759,-1287.67,0.00042598,25]
[349187996,1737022247768,-1882.81,0.00042598,25]
[349187997,1737022247777,-609.59,0.00042598,120]
[349188000,1737022247788,-699.16,0.00042598,25]
[349188002,1737022247797,-841.54,0.00042598,25]
[349188004,1737022247808,-500.0,0.00042598,25]
[349188006,1737022247818,-500.0,0.00042598,25]
[349188008,1737022247827,-640.75,0.00042598,25]
[349188010,1737022247836,-706.94,0.00042598,25]
[349188012,1737022247845,-1000.0,0.00042599,120]
[349188013,1737022247855,-1238.02,0.00042599,45]
[349188016,1737022247865,-151.0,0.00042599,14]
[349188018,1737022247877,-500.0,0.00042599,25]
[349188019,1737022247888,-221.720104,0.00042599,14]
[349188022,1737022247898,-216.597152,0.00042599,14]
[349188024,1737022247908,-2641.52,0.00042599,25]
[349188025,1737022247918,-500.0,0.00042599,25]
[349188027,1737022247927,-500.0,0.00042599,25]
[349188029,1737022247938,-500.0,0.00042599,25]
[349188031,1737022247948,-868.67,0.00042599,25]
[349188034,1737022247957,-500.0,0.00042599,25]
[349188035,1737022247967,-500.0,0.00042599,25]
[349188038,1737022247977,-796.96,0.00042599,25]
[349188039,1737022247987,-894.04,0.00042599,25]
[349188042,1737022247997,-1036.32,0.00042599,25]
[349188044,1737022248006,-500.0,0.00042599,25]
[349188046,1737022248018,-500.0,0.00042599,25]
[349188048,1737022248028,-1904.64,0.00042599,25]
[349188050,1737022248037,-1454.38,0.00042599,25]
[349188052,1737022248046,-681.36,0.00042599,25]
[349188054,1737022248058,-333.54015985,0.00042599,25]
[349188056,1737022248068,-857.26,0.00042599,25]
[349188058,1737022248078,-634.67,0.00042599,25]
[349188060,1737022248089,-500.0,0.00042599,25]
[349188062,1737022248099,-1779.03,0.00042599,25]
[349188064,1737022248109,-500.0,0.00042599,25]
[349188066,1737022248120,-691.27,0.00042599,25]
[349188068,1737022248129,-571.02,0.00042599,25]
[349188070,1737022248139,-500.0,0.00042599,25]
[349188072,1737022248149,-559.14,0.00042599,25]
[349188074,1737022248159,-500.0,0.00042599,120]
[349188076,1737022248169,-500.0,0.00042599,25]
[349188078,1737022248178,-872.48,0.00042599,25]
[349188080,1737022248190,-500.0,0.00042599,25]
[349188082,1737022248199,-500.0,0.00042599,25]
[349188084,1737022248210,-500.0,0.00042599,25]
[349188086,1737022248220,-567.0,0.00042599,25]
[349188088,1737022248230,-282.27004734,0.00042599,25]
[349188090,1737022248240,-933.54,0.00042599,25]
[349188092,1737022248250,-1878.59,0.00042599,25]
[349188094,1737022248260,-500.0,0.00042599,25]
[349188096,1737022248270,-500.0,0.00042599,25]
[349188098,1737022248280,-1075.23,0.00042599,25]
[349188100,1737022248290,-500.0,0.00042599,25]
[349188102,1737022248301,-500.0,0.00042599,25]
[349188103,1737022248310,-500.0,0.00042599,25]
[349188105,1737022248320,-500.0,0.00042599,25]
[349188107,1737022248330,-2656.42,0.00042599,25]
[349188109,1737022248340,-520.48,0.00042599,25]
[349188111,1737022248350,-2053.13,0.00042599,25]
[349188113,1737022248360,-662.09,0.00042599,25]
[349188115,1737022248371,-500.0,0.00042599,25]
[349188117,1737022248380,-500.0,0.00042599,25]
[349188119,1737022248390,-922.52,0.00042599,25]
[349188121,1737022248401,-500.0,0.00042599,25]
[349188123,1737022248411,-1606.24,0.00042599,25]
[349188125,1737022248421,-823.54,0.00042599,25]
[349188127,1737022248431,-1403.74,0.00042599,25]
[349188130,1737022248442,-500.0,0.00042599,25]
[349188131,1737022248452,-500.0,0.00042599,25]
[349188133,1737022248462,-1394.69,0.00042599,25]
[349188135,1737022248472,-500.0,0.00042599,25]
[349188137,1737022248483,-500.0,0.00042599,25]
[349188139,1737022248494,-744.62,0.00042599,25]
[349188142,1737022248504,-1192.68,0.00042599,25]
[349188143,1737022248515,-1379.66,0.00042599,25]
[349188146,1737022248525,-1462.11,0.00042599,25]
[349188148,1737022248535,-1148.1,0.00042599,25]
[349188150,1737022248545,-80576.01590052,0.000426,120]
[349188152,1737022248557,-400.0,0.000426,15]
[349188154,1737022248567,-158.927964,0.000426,14]
[349188156,1737022248578,-158.927964,0.000426,14]
[349188158,1737022248589,-345.996772,0.000426,14]
[349188160,1737022248603,-345.996772,0.000426,14]
[349188162,1737022248615,-151.0,0.000426,14]
[349188164,1737022248626,-319.82243725,0.000426,2]
[349188166,1737022248637,-1544.45,0.00042603,30]
[349188168,1737022248650,-12130.13310302,0.0004265,2]
[349188170,1737022248661,-150.5,0.00042667,30]
[349188172,1737022248672,-150.5,0.0004267,30]
[349188174,1737022248684,-4088.0432633,0.00042671,2]
[349188176,1737022248696,-4223.6533484,0.00042671,2]
[349188178,1737022248707,-4359.2634336,0.00042671,2]
[349188180,1737022248718,-4494.8735187,0.00042671,2]
[349188182,1737022248730,-2399.3982489,0.00042671,2]
[349188184,1737022248741,-2399.3982489,0.00042671,2]
[349188186,1737022248752,-2399.3982489,0.00042671,2]
[349188188,1737022248763,-2399.3982489,0.00042671,2]
[349188190,1737022248773,-500.0,0.00042673,10]
[349188192,1737022248784,-500.0,0.00042673,10]
[349188194,1737022248794,-500.0,0.00042673,10]
[349188196,1737022248807,-500.0,0.00042673,10]
[349188198,1737022248817,-150.5,0.00042677,30]
[349188200,1737022248828,-150.5,0.0004268,30]
[349188202,1737022248838,-1171.0,0.00042685,120]
[349188204,1737022248848,-299.28084835,0.00042685,30]
[349188206,1737022248858,-299.53259712,0.00042685,30]
[349188208,1737022248868,-244.95550432,0.00042685,30]
[349188210,1737022248879,-150.00000001,0.00042685,30]
[349188212,1737022248889,-150.5,0.00042687,30]
[349188214,1737022248900,-1000.0,0.0004269,120]
[349188216,1737022248910,-5070.76774557,0.0004269,120]
[349188218,1737022248920,-150.5,0.0004269,30]
[349188220,1737022248930,-239.5,0.0004269,30]
[349188222,1737022248940,-500.0,0.00042693,25]
[349188224,1737022248950,-500.0,0.00042693,25]
[349188226,1737022248961,-1238.02,0.00042693,45]
[349188228,1737022248972,-500.0,0.00042693,25]
[349188230,1737022248981,-2641.52,0.00042693,25]
[349188232,1737022248991,-500.0,0.00042693,25]
[349188234,1737022249003,-500.0,0.00042693,25]
[349188236,1737022249013,-500.0,0.00042693,25]
[349188238,1737022249023,-868.67,0.00042693,25]
[349188240,1737022249033,-500.0,0.00042693,25]
[349188242,1737022249043,-500.0,0.00042693,25]
[349188244,1737022249056,-500.0,0.00042693,25]
[349188256,1737022249173,-796.96,0.00042693,25]
[349188258,1737022249184,-659.57,0.00042693,25]
[349188260,1737022249194,-163.442924,0.00042693,25]
[349188262,1737022249204,-894.04,0.00042693,25]
[349188264,1737022249215,-1036.32,0.00042693,25]
[349188266,1737022249225,-500.0,0.00042693,25]
[349188268,1737022249235,-500.0,0.00042693,25]
[349188270,1737022249245,-1053.71,0.00042693,25]
[349188272,1737022249255,-500.0,0.00042693,25]
[349188274,1737022249266,-568.15,0.00042693,25]
[349188276,1737022249276,-1904.64,0.00042693,25]
[349188278,1737022249287,-151.234075,0.00042693,25]
[349188280,1737022249297,-1691.25,0.00042693,25]
[349188282,1737022249309,-1454.38,0.00042693,25]
[349188284,1737022249319,-761.84,0.00042693,25]
[349188286,1737022249330,-500.0,0.00042693,25]
[349188288,1737022249340,-681.36,0.00042693,25]
[349188290,1737022249350,-500.0,0.00042693,25]
[349188292,1737022249361,-857.26,0.00042693,25]
[349188294,1737022249372,-634.67,0.00042693,25]
[349188296,1737022249382,-1255.38,0.00042693,25]
[349188298,1737022249392,-500.0,0.00042693,25]
[349188300,1737022249402,-500.0,0.00042693,25]
[349188302,1737022249411,-1779.03,0.00042693,25]
[349188304,1737022249421,-1414.85,0.00042693,25]
[349188306,1737022249431,-500.0,0.00042693,25]
[349188308,1737022249440,-691.27,0.00042693,25]
[349188310,1737022249449,-973.35,0.00042693,25]
[349188312,1737022249460,-571.02,0.00042693,25]
[349188314,1737022249469,-500.0,0.00042693,25]
[349188316,1737022249478,-559.14,0.00042693,25]
[349188318,1737022249488,-500.0,0.00042693,25]
[349188320,1737022249498,-872.48,0.00042693,25]
[349188322,1737022249509,-454.71,0.00042693,25]
[349188324,1737022249519,-500.0,0.00042693,25]
[349188326,1737022249528,-812.85,0.00042693,25]
[349188329,1737022249538,-500.0,0.00042693,25]
[349188331,1737022249548,-567.0,0.00042693,25]
[349188333,1737022249558,-933.54,0.00042693,25]
[349188335,1737022249567,-1878.59,0.00042693,25]
[349188336,1737022249577,-1287.67,0.00042693,25]
[349188338,1737022249586,-500.0,0.00042693,25]
[349188341,1737022249597,-417.65820429,0.00042693,25]
[349188342,1737022249610,-1882.81,0.00042693,25]
[349188344,1737022249619,-1075.23,0.00042693,25]
[349188346,1737022249629,-500.0,0.00042693,25]
[349188348,1737022249638,-500.0,0.00042693,25]
[349188350,1737022249648,-500.0,0.00042693,25]
[349188352,1737022249657,-500.0,0.00042693,25]
[349188354,1737022249667,-2656.42,0.00042693,25]
[349188356,1737022249677,-520.48,0.00042693,25]
[349188358,1737022249686,-2053.13,0.00042693,25]
[349188360,1737022249695,-662.09,0.00042693,25]
[349188362,1737022249705,-500.0,0.00042693,25]
[349188364,1737022249714,-500.0,0.00042693,25]
[349188366,1737022249723,-922.52,0.00042693,25]
[349188368,1737022249734,-500.0,0.00042693,25]
[349188370,1737022249743,-699.16,0.00042693,25]
[349188372,1737022249752,-1606.24,0.00042693,25]
[349188374,1737022249762,-823.54,0.00042693,25]
[349188376,1737022249772,-1403.74,0.00042693,25]
[349188378,1737022249781,-500.0,0.00042693,25]
[349188379,1737022249791,-500.0,0.00042693,25]
[349188380,1737022249801,-1394.69,0.00042693,25]
[349188381,1737022249811,-500.0,0.00042693,25]
[349188382,1737022249821,-841.54,0.00042693,25]
[349188383,1737022249830,-500.0,0.00042693,25]
[349188384,1737022249840,-744.62,0.00042693,25]
[349188385,1737022249850,-500.0,0.00042693,25]
[349188386,1737022249860,-1192.68,0.00042693,25]
[349188387,1737022249870,-1379.66,0.00042693,25]
[349188388,1737022249879,-1462.11,0.00042693,25]
[349188389,1737022249888,-500.0,0.00042693,25]
[349188390,1737022249897,-640.75,0.00042693,25]
[349188391,1737022249906,-1148.1,0.00042693,25]
[349188392,1737022249915,-706.94,0.00042693,25]
[349188394,1737022249925,-144038.81967511,0.00042694,30]
[349188395,1737022249934,-151.0,0.00042694,14]
[349188397,1737022249944,-158.927964,0.00042694,14]
[349188399,1737022249954,-158.927964,0.00042694,14]
[349188401,1737022249964,-345.996772,0.00042694,14]
[349188403,1737022249974,-345.996772,0.00042694,14]
[349188405,1737022249984,-151.0,0.00042694,14]
[349188407,1737022249993,-500.0,0.00042696,25]
[349188409,1737022250003,-500.0,0.00042697,25]
[349188411,1737022250013,-500.0,0.00042697,25]
[349188413,1737022250022,-500.0,0.00042697,25]
[349188415,1737022250032,-500.0,0.00042697,25]
[349188417,1737022250042,-500.0,0.00042697,25]
[349188419,1737022250051,-1238.02,0.00042697,45]
[349188421,1737022250061,-2641.52,0.00042697,25]
[349188423,1737022250071,-500.0,0.00042697,25]
[349188425,1737022250080,-500.0,0.00042697,25]
[349188427,1737022250090,-500.0,0.00042697,25]
[349188429,1737022250100,-868.67,0.00042697,25]
[349188431,1737022250110,-500.0,0.00042697,25]
[349188433,1737022250121,-500.0,0.00042697,25]
[349188435,1737022250131,-500.0,0.00042697,25]
[349188437,1737022250141,-796.96,0.00042697,25]
[349188439,1737022250150,-659.57,0.00042697,25]
[349188441,1737022250161,-163.442924,0.00042697,25]
[349188443,1737022250171,-894.04,0.00042697,25]
[349188445,1737022250181,-1036.32,0.00042697,25]
[349188447,1737022250191,-500.0,0.00042697,25]
[349188449,1737022250202,-500.0,0.00042697,25]
[349188451,1737022250212,-1053.71,0.00042697,25]
[349188453,1737022250222,-500.0,0.00042697,25]
[349188455,1737022250233,-568.15,0.00042697,25]
[349188457,1737022250243,-1904.64,0.00042697,25]
[349188459,1737022250253,-1691.25,0.00042697,25]
[349188461,1737022250263,-1454.38,0.00042697,25]
[349188463,1737022250272,-761.84,0.00042697,25]
[349188465,1737022250281,-500.0,0.00042697,25]
[349188467,1737022250292,-681.36,0.00042697,25]
[349188469,1737022250302,-500.0,0.00042697,25]
[349188471,1737022250312,-857.26,0.00042697,25]
[349188473,1737022250322,-634.67,0.00042697,25]
[349188475,1737022250332,-1255.38,0.00042697,25]
[349188477,1737022250342,-500.0,0.00042697,25]
[349188479,1737022250352,-500.0,0.00042697,25]
[349188481,1737022250362,-1779.03,0.00042697,25]
[349188483,1737022250372,-500.0,0.00042697,25]
[349188485,1737022250381,-1414.85,0.00042697,25]
[349188487,1737022250391,-691.27,0.00042697,25]
[349188489,1737022250400,-973.35,0.00042697,25]
[349188491,1737022250410,-571.02,0.00042697,25]
[349188493,1737022250420,-500.0,0.00042697,25]
[349188495,1737022250429,-559.14,0.00042697,25]
[349188497,1737022250439,-500.0,0.00042697,25]
[349188499,1737022250448,-872.48,0.00042697,25]
[349188501,1737022250457,-500.0,0.00042697,25]
[349188503,1737022250467,-812.85,0.00042697,25]
[349188505,1737022250476,-500.0,0.00042697,25]
[349188507,1737022250485,-567.0,0.00042697,25]
[349188508,1737022250495,-933.54,0.00042697,25]
[349188511,1737022250505,-1878.59,0.00042697,25]
[349188512,1737022250514,-1287.67,0.00042697,25]
[349188515,1737022250525,-500.0,0.00042697,25]
[349188517,1737022250535,-1882.81,0.00042697,25]
[349188519,1737022250545,-1075.23,0.00042697,25]
[349188521,1737022250554,-500.0,0.00042697,25]
[349188523,1737022250567,-500.0,0.00042697,25]
[349188524,1737022250576,-592.88,0.00042697,25]
[349188526,1737022250586,-500.0,0.00042697,25]
[349188529,1737022250597,-2656.42,0.00042697,25]
[349188531,1737022250609,-520.48,0.00042697,25]
[349188533,1737022250618,-2053.13,0.00042697,25]
[349188534,1737022250628,-662.09,0.00042697,25]
[349188536,1737022250639,-500.0,0.00042697,25]
[349188538,1737022250648,-500.0,0.00042697,25]
[349188540,1737022250658,-922.52,0.00042697,25]
[349188542,1737022250667,-500.0,0.00042697,25]
[349188544,1737022250678,-699.16,0.00042697,25]
[349188546,1737022250687,-1606.24,0.00042697,25]
[349188548,1737022250696,-823.54,0.00042697,25]
[349188550,1737022250706,-1403.74,0.00042697,25]
[349188552,1737022250715,-500.0,0.00042697,25]
[349188554,1737022250724,-500.0,0.00042697,25]
[349188556,1737022250734,-1394.69,0.00042697,25]
[349188559,1737022250744,-500.0,0.00042697,25]
[349188561,1737022250754,-841.54,0.00042697,25]
[349188563,1737022250763,-500.0,0.00042697,25]
[349188565,1737022250772,-744.62,0.00042697,25]
[349188567,1737022250782,-500.0,0.00042697,25]
[349188569,1737022250791,-1192.68,0.00042697,25]
[349188571,1737022250801,-1379.66,0.00042697,25]
[349188573,1737022250810,-1462.11,0.00042697,25]
[349188575,1737022250819,-640.75,0.00042697,25]
[349188577,1737022250828,-1148.1,0.00042697,25]
[349188579,1737022250838,-706.94,0.00042697,25]
[349188581,1737022250847,-1170.78862555,0.00042698,60]
[349188582,1737022250856,-500.0,0.00042698,25]
[349188584,1737022250866,-500.0,0.00042698,25]
[349188586,1737022250875,-500.0,0.00042698,25]
[349188588,1737022250884,-339.56182308,0.00042698,25]
[349188590,1737022250893,-500.0,0.00042698,25]
[349188592,1737022250902,-500.0,0.00042698,25]
[349188594,1737022250911,-500.0,0.00042698,25]
[349188596,1737022250920,-646.95977842,0.00042698,25]
[349188598,1737022250930,-1238.02,0.00042698,45]
[349188600,1737022250939,-1238.02,0.00042698,45]
[349188602,1737022250948,-500.0,0.00042698,7]
[349188604,1737022250957,-2641.52,0.00042698,25]
[349188606,1737022250967,-2641.52,0.00042698,25]
[349188608,1737022250976,-2641.52,0.00042698,25]
[349188610,1737022250985,-500.0,0.00042698,25]
[349188612,1737022250994,-500.0,0.00042698,25]
[349188614,1737022251003,-500.0,0.00042698,25]
[349188616,1737022251012,-500.0,0.00042698,25]
[349188618,1737022251021,-500.0,0.00042698,25]
[349188620,1737022251031,-500.0,0.00042698,25]
[349188622,1737022251039,-500.0,0.00042698,25]
[349188624,1737022251049,-500.0,0.00042698,25]
[349188626,1737022251059,-868.67,0.00042698,25]
[349188628,1737022251068,-868.67,0.00042698,25]
[349188630,1737022251078,-868.67,0.00042698,25]
[349188632,1737022251088,-500.0,0.00042698,25]
[349188634,1737022251097,-500.0,0.00042698,25]
[349188636,1737022251106,-500.0,0.00042698,25]
[349188638,1737022251115,-500.0,0.00042698,25]
[349188640,1737022251125,-500.0,0.00042698,25]
[349188642,1737022251134,-500.0,0.00042698,25]
[349188644,1737022251144,-500.0,0.00042698,25]
[349188646,1737022251156,-500.0,0.00042698,25]
[349188648,1737022251166,-796.96,0.00042698,25]
[349188649,1737022251175,-796.96,0.00042698,25]
[349188651,1737022251185,-659.57,0.00042698,25]
[349188654,1737022251195,-659.57,0.00042698,25]
[349188655,1737022251204,-659.57,0.00042698,25]
[349188657,1737022251214,-163.442924,0.00042698,25]
[349188659,1737022251223,-894.04,0.00042698,25]
[349188661,1737022251233,-163.442924,0.00042698,25]
[349188663,1737022251242,-894.04,0.00042698,25]
[349188665,1737022251252,-163.442924,0.00042698,25]
[349188667,1737022251261,-894.04,0.00042698,25]
[349188670,1737022251271,-1036.32,0.00042698,25]
[349188671,1737022251280,-1036.32,0.00042698,25]
[349188674,1737022251290,-1036.32,0.00042698,25]
[349188676,1737022251299,-500.0,0.00042698,25]
[349188677,1737022251309,-500.0,0.00042698,25]
[349188680,1737022251318,-500.0,0.00042698,25]
[349188681,1737022251329,-500.0,0.00042698,25]
[349188683,1737022251338,-500.0,0.00042698,25]
[349188684,1737022251347,-1053.71,0.00042698,25]
[349188685,1737022251357,-1053.71,0.00042698,25]
[349188686,1737022251366,-1053.71,0.00042698,25]
[349188687,1737022251375,-311.52,0.00042698,25]
[349188688,1737022251385,-568.15,0.00042698,25]
[349188689,1737022251394,-568.15,0.00042698,25]
[349188690,1737022251403,-568.15,0.00042698,25]
[349188691,1737022251413,-1904.64,0.00042698,25]
[349188692,1737022251422,-1904.64,0.00042698,25]
[349188693,1737022251432,-151.234075,0.00042698,25]
[349188694,1737022251442,-151.234075,0.00042698,25]
[349188695,1737022251451,-1691.25,0.00042698,25]